[Event "Titled Tuesday Blitz January 31 Early 2023"]
[White "Babazada, Khazar"]
[Black "Sanal, Vahap"]
[WhiteFideId "13413554"]
[BlackFideId "6300545"]
[WhiteElo "2474"]
[BlackElo "2600"]
[Result "1-0"]
[Round "09"]
[TimeControl "180+2"]
[Date "2023.01.31"]
[WhiteClock "0:00:52"]
[BlackClock "0:00:03"]

1. e4 {[%clk 0:03:00]}  d6 {[%clk 0:03:00]} 2. d4 {[%clk 0:03:00]}  Nf6 {[%clk 0:03:01]} 3. Nc3 {[%clk 0:03:01]}  e5 {[%clk 0:03:01]} 4. Nf3 {[%clk 0:03:02]}  Nbd7 {[%clk 0:03:00]} 5. Bc4 {[%clk 0:03:02]}  Be7 {[%clk 0:02:59]} 6. O-O {[%clk 0:03:02]}  O-O {[%clk 0:02:59]} 7. a4 {[%clk 0:03:03]}  c6 {[%clk 0:02:58]} 8. h3 {[%clk 0:03:01]}  h6 {[%clk 0:02:58]} 9. Ba2 {[%clk 0:03:01]}  Re8 {[%clk 0:02:57]} 10. Re1 {[%clk 0:03:02]}  exd4 {[%clk 0:02:57]} 11. Nxd4 {[%clk 0:03:03]}  Bf8 {[%clk 0:02:56]} 12. a5 {[%clk 0:02:56]}  Nc5 {[%clk 0:02:55]} 13. Qf3 {[%clk 0:02:52]}  d5 {[%clk 0:02:54]} 14. e5 {[%clk 0:02:49]}  Nfd7 {[%clk 0:02:46]} 15. Bf4 {[%clk 0:02:49]}  Ne6 {[%clk 0:02:46]} 16. Nxe6 {[%clk 0:02:47]}  fxe6 {[%clk 0:02:40]} 17. Qg4 {[%clk 0:02:38]}  Kh8 {[%clk 0:02:34]} 18. Qg6 {[%clk 0:02:34]}  Re7 {[%clk 0:02:16]} 19. Ne2 {[%clk 0:02:12]}  Qe8 {[%clk 0:02:15]} 20. Qg4 {[%clk 0:02:12]}  Rf7 {[%clk 0:02:09]} 21. Ng3 {[%clk 0:02:12]}  Bc5 {[%clk 0:02:02]} 22. Re2 {[%clk 0:01:50]}  Nf8 {[%clk 0:01:44]} 23. c3 {[%clk 0:01:47]}  g5 {[%clk 0:01:28]} 24. Be3 {[%clk 0:01:47]}  Bxe3 {[%clk 0:01:27]} 25. Rxe3 {[%clk 0:01:48]}  Rf4 {[%clk 0:01:25]} 26. Qe2 {[%clk 0:01:48]}  Rh4 {[%clk 0:01:18]} 27. Bb1 {[%clk 0:01:47]}  Bd7 {[%clk 0:01:16]} 28. Rf3 {[%clk 0:01:46]}  Qe7 {[%clk 0:01:08]} 29. Rf6 {[%clk 0:01:15]}  Nh7 {[%clk 0:01:03]} 30. Bxh7 {[%clk 0:01:14]}  Qxh7 {[%clk 0:01:04]} 31. Qf3 {[%clk 0:01:13]}  Rf4 {[%clk 0:00:34]} 32. Rxf4 {[%clk 0:01:13]}  gxf4 {[%clk 0:00:35]} 33. Qxf4 {[%clk 0:01:14]}  Rg8 {[%clk 0:00:35]} 34. Ra4 {[%clk 0:01:10]}  Qg6 {[%clk 0:00:30]} 35. Qh4 {[%clk 0:01:07]}  Kh7 {[%clk 0:00:25]} 36. Rg4 {[%clk 0:01:06]}  Qb1+ {[%clk 0:00:25]} 37. Kh2 {[%clk 0:01:06]}  Rxg4 {[%clk 0:00:26]} 38. hxg4 {[%clk 0:01:05]}  Qg6 {[%clk 0:00:23]} 39. Nh5 {[%clk 0:01:05]}  Be8 {[%clk 0:00:17]} 40. Qe7+ {[%clk 0:01:04]}  Bf7 {[%clk 0:00:14]} 41. Qf8 {[%clk 0:01:05]}  Bg8 {[%clk 0:00:02]} 42. Nf6+ {[%clk 0:01:05]}  Kh8 {[%clk 0:00:03]} 43. Nxg8 {[%clk 0:01:06]}  Qxg8 {[%clk 0:00:04]} 44. Qxh6+ {[%clk 0:01:05]}  Qh7 {[%clk 0:00:04]} 45. Qxh7+ {[%clk 0:01:05]}  Kxh7 {[%clk 0:00:05]} 46. Kg3 {[%clk 0:01:06]}  Kg6 {[%clk 0:00:05]} 47. f4 {[%clk 0:01:07]}  b6 {[%clk 0:00:04]} 48. axb6 {[%clk 0:01:07]}  axb6 {[%clk 0:00:05]} 49. Kf3 {[%clk 0:01:07]}  c5 {[%clk 0:00:05]} 50. Ke3 {[%clk 0:01:07]}  Kf7 {[%clk 0:00:04]} 51. f5 {[%clk 0:01:08]}  Ke7 {[%clk 0:00:02]} 52. b4 {[%clk 0:01:07]}  Kf7 {[%clk 0:00:03]} 53. bxc5 {[%clk 0:01:05]}  bxc5 {[%clk 0:00:04]} 54. Kd3 {[%clk 0:01:05]}  Ke7 {[%clk 0:00:04]} 55. Kc2 {[%clk 0:01:05]}  Kf7 {[%clk 0:00:03]} 56. Kb3 {[%clk 0:01:06]}  Ke7 {[%clk 0:00:03]} 57. Ka4 {[%clk 0:01:06]}  Kd7 {[%clk 0:00:02]} 58. Kb5 {[%clk 0:01:06]}  c4 {[%clk 0:00:02]} 59. Kc5 {[%clk 0:01:02]}  Ke7 {[%clk 0:00:03]} 60. f6+ {[%clk 0:01:02]}  Kf7 {[%clk 0:00:03]} 61. g5 {[%clk 0:01:02]}  Kg6 {[%clk 0:00:03]} 62. Kd6 {[%clk 0:00:50]}  d4 {[%clk 0:00:03]} 63. Kxe6 {[%clk 0:00:51]}  dxc3 {[%clk 0:00:02]} 64. f7 {[%clk 0:00:51]}  c2 {[%clk 0:00:02]} 65. f8=Q {[%clk 0:00:52]}  c1=Q {[%clk 0:00:03]} 66. Qh6# {[%clk 0:00:52]} 1-0


[Site "https://www.chess.com"]

[Event "Titled Tuesday Blitz January 31 Early 2023"]
[White "Nakamura, Hikaru"]
[Black "Rasulov, Vugar"]
[WhiteFideId "2016192"]
[BlackFideId "13402390"]
[WhiteElo "2775"]
[BlackElo "2523"]
[Result "1-0"]
[Round "09"]
[TimeControl "180+2"]
[Date "2023.01.31"]
[WhiteClock "0:00:09"]
[BlackClock "0:00:03"]

1. Nf3 {[%clk 0:02:53]}  Nf6 {[%clk 0:02:58]} 2. g3 {[%clk 0:02:43]}  d5 {[%clk 0:02:58]} 3. Bg2 {[%clk 0:02:42]}  c6 {[%clk 0:02:58]} 4. d3 {[%clk 0:02:42]}  Bg4 {[%clk 0:02:58]} 5. Nbd2 {[%clk 0:02:42]}  Nbd7 {[%clk 0:02:58]} 6. h3 {[%clk 0:02:43]}  Bh5 {[%clk 0:02:58]} 7. g4 {[%clk 0:02:43]}  Bg6 {[%clk 0:02:58]} 8. Nh4 {[%clk 0:02:44]}  e5 {[%clk 0:02:53]} 9. e3 {[%clk 0:02:44]}  Bd6 {[%clk 0:02:51]} 10. a3 {[%clk 0:02:43]}  Qe7 {[%clk 0:02:50]} 11. b3 {[%clk 0:02:41]}  O-O-O {[%clk 0:02:43]} 12. Bb2 {[%clk 0:02:41]}  Kb8 {[%clk 0:02:44]} 13. b4 {[%clk 0:02:40]}  Nb6 {[%clk 0:02:16]} 14. Rb1 {[%clk 0:02:39]}  d4 {[%clk 0:02:09]} 15. e4 {[%clk 0:02:26]}  Ne8 {[%clk 0:01:59]} 16. Nf5 {[%clk 0:02:24]}  Bxf5 {[%clk 0:01:59]} 17. exf5 {[%clk 0:02:23]}  g6 {[%clk 0:01:57]} 18. Qf3 {[%clk 0:02:14]}  gxf5 {[%clk 0:01:53]} 19. Qxf5 {[%clk 0:02:14]}  Ng7 {[%clk 0:01:53]} 20. Qf3 {[%clk 0:02:13]}  Ne6 {[%clk 0:01:52]} 21. Ne4 {[%clk 0:02:09]}  Nf4 {[%clk 0:01:51]} 22. Bc1 {[%clk 0:02:05]}  Nbd5 {[%clk 0:01:50]} 23. Ng3 {[%clk 0:02:04]}  Qe6 {[%clk 0:01:41]} 24. b5 {[%clk 0:02:02]}  Nxg2+ {[%clk 0:01:28]} 25. Qxg2 {[%clk 0:02:00]}  Nc3 {[%clk 0:01:27]} 26. Rb3 {[%clk 0:02:01]}  Nxb5 {[%clk 0:01:25]} 27. Qf3 {[%clk 0:01:37]}  Ka8 {[%clk 0:01:17]} 28. Bg5 {[%clk 0:01:27]}  Rdf8 {[%clk 0:01:09]} 29. Nf5 {[%clk 0:01:18]}  h5 {[%clk 0:01:06]} 30. gxh5 {[%clk 0:01:15]}  Bc7 {[%clk 0:01:00]} 31. h6 {[%clk 0:01:09]}  Nc3 {[%clk 0:00:54]} 32. Bd2 {[%clk 0:00:52]}  Nd5 {[%clk 0:00:42]} 33. Rg1 {[%clk 0:00:48]}  Nf4 {[%clk 0:00:37]} 34. Qe4 {[%clk 0:00:48]}  Nxh3 {[%clk 0:00:31]} 35. Rg7 {[%clk 0:00:46]}  Nf4 {[%clk 0:00:22]} 36. Bxf4 {[%clk 0:00:42]}  exf4 {[%clk 0:00:22]} 37. Qxe6 {[%clk 0:00:41]}  Ba5+ {[%clk 0:00:22]} 38. Ke2 {[%clk 0:00:16]}  fxe6 {[%clk 0:00:23]} 39. Nxd4 {[%clk 0:00:17]}  Bb6 {[%clk 0:00:20]} 40. Nxe6 {[%clk 0:00:17]}  f3+ {[%clk 0:00:17]} 41. Kd2 {[%clk 0:00:17]}  Re8 {[%clk 0:00:17]} 42. Nc7+ {[%clk 0:00:16]}  Bxc7 {[%clk 0:00:17]} 43. Rxc7 {[%clk 0:00:17]}  Rxh6 {[%clk 0:00:13]} 44. Rbxb7 {[%clk 0:00:17]}  Rh2 {[%clk 0:00:13]} 45. Rxa7+ {[%clk 0:00:17]}  Kb8 {[%clk 0:00:14]} 46. Rcb7+ {[%clk 0:00:14]}  Kc8 {[%clk 0:00:14]} 47. Kc3 {[%clk 0:00:14]}  Rxf2 {[%clk 0:00:14]} 48. a4 {[%clk 0:00:13]}  Ree2 {[%clk 0:00:11]} 49. a5 {[%clk 0:00:12]}  Rxc2+ {[%clk 0:00:11]} 50. Kd4 {[%clk 0:00:12]}  Rh2 {[%clk 0:00:09]} 51. a6 {[%clk 0:00:10]}  Rh4+ {[%clk 0:00:07]} 52. Ke3 {[%clk 0:00:10]}  f2 {[%clk 0:00:03]} 53. Ra8# {[%clk 0:00:09]} 1-0


[Site "https://www.chess.com"]

[Event "Titled Tuesday Blitz January 31 Early 2023"]
[White "Vokhidov, Shamsiddin"]
[Black "Le, Tuan Minh"]
[WhiteFideId "14204223"]
[BlackFideId "12401153"]
[WhiteElo "2586"]
[BlackElo "2542"]
[Result "1-0"]
[Round "09"]
[TimeControl "180+2"]
[Date "2023.01.31"]
[WhiteClock "0:01:26"]
[BlackClock "0:00:20"]

1. e4 {[%clk 0:03:00]}  c5 {[%clk 0:02:57]} 2. Nf3 {[%clk 0:03:00]}  Nf6 {[%clk 0:02:58]} 3. Nc3 {[%clk 0:03:00]}  d5 {[%clk 0:02:58]} 4. exd5 {[%clk 0:02:58]}  Nxd5 {[%clk 0:02:59]} 5. Bb5+ {[%clk 0:02:58]}  Bd7 {[%clk 0:02:58]} 6. Ne5 {[%clk 0:02:56]}  Nf6 {[%clk 0:02:59]} 7. Qf3 {[%clk 0:02:56]}  Qc8 {[%clk 0:02:59]} 8. Nxd7 {[%clk 0:02:55]}  Nbxd7 {[%clk 0:02:58]} 9. b3 {[%clk 0:02:51]}  a6 {[%clk 0:02:58]} 10. Bxd7+ {[%clk 0:02:51]}  Qxd7 {[%clk 0:02:59]} 11. Bb2 {[%clk 0:02:52]}  Rc8 {[%clk 0:03:00]} 12. O-O-O {[%clk 0:02:46]}  Qc6 {[%clk 0:02:59]} 13. Qg3 {[%clk 0:02:37]}  c4 {[%clk 0:02:46]} 14. d4 {[%clk 0:02:27]}  cxb3 {[%clk 0:02:41]} 15. d5 {[%clk 0:02:16]}  Qc5 {[%clk 0:02:36]} 16. Rhe1 {[%clk 0:02:14]}  g6 {[%clk 0:01:59]} 17. axb3 {[%clk 0:02:04]}  Bh6+ {[%clk 0:01:53]} 18. Kb1 {[%clk 0:02:04]}  O-O {[%clk 0:01:54]} 19. Re2 {[%clk 0:02:04]}  Rfd8 {[%clk 0:01:27]} 20. Na4 {[%clk 0:02:00]}  Qd6 {[%clk 0:01:04]} 21. Qxd6 {[%clk 0:01:37]}  Rxd6 {[%clk 0:01:05]} 22. Rxe7 {[%clk 0:01:35]}  b5 {[%clk 0:00:48]} 23. Bxf6 {[%clk 0:01:32]}  Rxf6 {[%clk 0:00:46]} 24. d6 {[%clk 0:01:32]}  Rxd6 {[%clk 0:00:28]} 25. Rxd6 {[%clk 0:01:30]}  Bf8 {[%clk 0:00:29]} 26. Nb6 {[%clk 0:01:27]}  Rb8 {[%clk 0:00:20]} 27. Red7 {[%clk 0:01:25]}  Bxd6 {[%clk 0:00:19]} 28. Rxd6 {[%clk 0:01:26]}  Kg7 {[%clk 0:00:20]} 29. Nd5 {[%clk 0:01:26]} 1-0


[Site "https://www.chess.com"]

[Event "Titled Tuesday Blitz January 31 Early 2023"]
[White "Kozak, Adam"]
[Black "Bacrot, Etienne"]
[WhiteFideId "753246"]
[BlackFideId "605506"]
[WhiteElo "2572"]
[BlackElo "2667"]
[Result "0-1"]
[Round "09"]
[TimeControl "180+2"]
[Date "2023.01.31"]
[WhiteClock "0:00:01"]
[BlackClock "0:00:06"]

1. c4 {[%clk 0:02:57]}  e5 {[%clk 0:02:59]} 2. Nc3 {[%clk 0:02:57]}  Nc6 {[%clk 0:02:59]} 3. Nf3 {[%clk 0:02:57]}  g6 {[%clk 0:03:00]} 4. d4 {[%clk 0:02:56]}  exd4 {[%clk 0:03:00]} 5. Nxd4 {[%clk 0:02:57]}  Bg7 {[%clk 0:02:59]} 6. Nxc6 {[%clk 0:02:57]}  bxc6 {[%clk 0:03:00]} 7. g3 {[%clk 0:02:58]}  Nf6 {[%clk 0:03:00]} 8. Bg2 {[%clk 0:02:58]}  O-O {[%clk 0:03:00]} 9. O-O {[%clk 0:02:59]}  Re8 {[%clk 0:03:01]} 10. Qc2 {[%clk 0:02:55]}  Rb8 {[%clk 0:02:58]} 11. b3 {[%clk 0:02:56]}  d5 {[%clk 0:02:58]} 12. cxd5 {[%clk 0:02:53]}  cxd5 {[%clk 0:02:48]} 13. Bb2 {[%clk 0:02:49]}  Bf5 {[%clk 0:02:36]} 14. Qd1 {[%clk 0:02:37]}  d4 {[%clk 0:02:16]} 15. Na4 {[%clk 0:02:33]}  Ne4 {[%clk 0:02:15]} 16. Rc1 {[%clk 0:02:27]}  c5 {[%clk 0:01:48]} 17. Rc4 {[%clk 0:01:34]}  Rb4 {[%clk 0:01:31]} 18. Bxe4 {[%clk 0:01:27]}  Rxc4 {[%clk 0:01:19]} 19. bxc4 {[%clk 0:01:18]}  Bxe4 {[%clk 0:01:10]} 20. Nxc5 {[%clk 0:01:17]}  Ba8 {[%clk 0:01:07]} 21. Re1 {[%clk 0:01:06]}  Qc8 {[%clk 0:00:53]} 22. Bxd4 {[%clk 0:01:05]}  Qh3 {[%clk 0:00:29]} 23. f3 {[%clk 0:00:58]}  Bxf3 {[%clk 0:00:26]} 24. exf3 {[%clk 0:00:39]}  Rxe1+ {[%clk 0:00:25]} 25. Qxe1 {[%clk 0:00:39]}  Bxd4+ {[%clk 0:00:25]} 26. Kh1 {[%clk 0:00:39]}  Bxc5 {[%clk 0:00:26]} 27. Qe8+ {[%clk 0:00:40]}  Bf8 {[%clk 0:00:25]} 28. Kg1 {[%clk 0:00:40]}  Qf5 {[%clk 0:00:25]} 29. Qe2 {[%clk 0:00:39]}  Qe6 {[%clk 0:00:22]} 30. Qd3 {[%clk 0:00:38]}  Kg7 {[%clk 0:00:21]} 31. Kg2 {[%clk 0:00:38]}  Qe5 {[%clk 0:00:21]} 32. Qc2 {[%clk 0:00:34]}  Bc5 {[%clk 0:00:20]} 33. Qd2 {[%clk 0:00:33]}  Qd4 {[%clk 0:00:21]} 34. Qc2 {[%clk 0:00:33]}  h5 {[%clk 0:00:21]} 35. Qe2 {[%clk 0:00:33]}  a5 {[%clk 0:00:21]} 36. Kh3 {[%clk 0:00:32]}  a4 {[%clk 0:00:19]} 37. f4 {[%clk 0:00:27]}  a3 {[%clk 0:00:19]} 38. f5 {[%clk 0:00:23]}  gxf5 {[%clk 0:00:15]} 39. Qxh5 {[%clk 0:00:23]}  Qf6 {[%clk 0:00:13]} 40. Qf3 {[%clk 0:00:22]}  Qe5 {[%clk 0:00:12]} 41. Qh5 {[%clk 0:00:21]}  Be7 {[%clk 0:00:11]} 42. Qf3 {[%clk 0:00:21]}  Qe4 {[%clk 0:00:11]} 43. Qf1 {[%clk 0:00:19]}  Kf6 {[%clk 0:00:08]} 44. Qc1 {[%clk 0:00:11]}  Kg6 {[%clk 0:00:08]} 45. c5 {[%clk 0:00:09]}  Qg4+ {[%clk 0:00:08]} 46. Kg2 {[%clk 0:00:10]}  Qe2+ {[%clk 0:00:08]} 47. Kh3 {[%clk 0:00:10]}  Qg4+ {[%clk 0:00:08]} 48. Kg2 {[%clk 0:00:11]}  Qe2+ {[%clk 0:00:08]} 49. Kh3 {[%clk 0:00:11]}  Qb2 {[%clk 0:00:09]} 50. Qc4 {[%clk 0:00:10]}  Qh8+ {[%clk 0:00:09]} 51. Kg2 {[%clk 0:00:10]}  Qb2+ {[%clk 0:00:09]} 52. Kh3 {[%clk 0:00:11]}  Qe5 {[%clk 0:00:09]} 53. c6 {[%clk 0:00:11]}  Bd6 {[%clk 0:00:09]} 54. Qc2 {[%clk 0:00:06]}  Qe4 {[%clk 0:00:09]} 55. Qc3 {[%clk 0:00:06]}  f4 {[%clk 0:00:08]} 56. c7 {[%clk 0:00:04]}  Qe6+ {[%clk 0:00:08]} 57. Kg2 {[%clk 0:00:02]}  Qe2+ {[%clk 0:00:08]} 58. Kh3 {[%clk 0:00:02]}  Qh5+ {[%clk 0:00:09]} 59. Kg2 {[%clk 0:00:03]}  f3+ {[%clk 0:00:09]} 60. Kg1 {[%clk 0:00:01]}  Bc5+ {[%clk 0:00:09]} 61. Kh1 {[%clk 0:00:01]}  Qd5 {[%clk 0:00:07]} 62. Qc2+ {[%clk 0:00:01]}  f5 {[%clk 0:00:07]} 63. Qxc5 {[%clk 0:00:01]}  f2+ {[%clk 0:00:06]} 64. Qxd5 {[%clk 0:00:01]}  f1=Q# {[%clk 0:00:06]} 0-1


[Site "https://www.chess.com"]

[Event "Titled Tuesday Blitz January 31 Early 2023"]
[White "Azarov, Sergei"]
[Black "Pranav, V"]
[WhiteFideId "13501470"]
[BlackFideId "25060783"]
[WhiteElo "2582"]
[BlackElo "2597"]
[Result "0-1"]
[Round "09"]
[TimeControl "180+2"]
[Date "2023.01.31"]
[WhiteClock "0:00:02"]
[BlackClock "0:00:13"]

1. e4 {[%clk 0:03:00]}  e5 {[%clk 0:02:59]} 2. Nf3 {[%clk 0:03:01]}  Nc6 {[%clk 0:02:59]} 3. Bb5 {[%clk 0:03:01]}  a6 {[%clk 0:03:00]} 4. Ba4 {[%clk 0:03:01]}  d6 {[%clk 0:03:00]} 5. Bxc6+ {[%clk 0:03:00]}  bxc6 {[%clk 0:03:00]} 6. d4 {[%clk 0:03:01]}  f6 {[%clk 0:03:01]} 7. c4 {[%clk 0:03:00]}  g6 {[%clk 0:02:59]} 8. Nc3 {[%clk 0:03:00]}  Bg7 {[%clk 0:02:59]} 9. Be3 {[%clk 0:02:58]}  Ne7 {[%clk 0:02:59]} 10. Qc2 {[%clk 0:02:51]}  O-O {[%clk 0:02:58]} 11. O-O-O {[%clk 0:02:51]}  Be6 {[%clk 0:02:50]} 12. c5 {[%clk 0:02:30]}  d5 {[%clk 0:02:26]} 13. h4 {[%clk 0:02:30]}  Qe8 {[%clk 0:02:24]} 14. h5 {[%clk 0:02:25]}  gxh5 {[%clk 0:02:19]} 15. dxe5 {[%clk 0:02:03]}  fxe5 {[%clk 0:02:14]} 16. Ng5 {[%clk 0:02:03]}  Bd7 {[%clk 0:01:59]} 17. Qe2 {[%clk 0:01:29]}  h6 {[%clk 0:01:42]} 18. Rxh5 {[%clk 0:01:22]}  hxg5 {[%clk 0:01:37]} 19. exd5 {[%clk 0:00:52]}  cxd5 {[%clk 0:01:35]} 20. Bxg5 {[%clk 0:00:48]}  c6 {[%clk 0:01:28]} 21. Rdh1 {[%clk 0:00:46]}  e4 {[%clk 0:01:24]} 22. Bh6 {[%clk 0:00:40]}  Nf5 {[%clk 0:00:41]} 23. Bxg7 {[%clk 0:00:29]}  Nxg7 {[%clk 0:00:42]} 24. Rh8+ {[%clk 0:00:29]}  Kf7 {[%clk 0:00:42]} 25. R8h6 {[%clk 0:00:27]}  Qe5 {[%clk 0:00:42]} 26. Qd2 {[%clk 0:00:17]}  Be6 {[%clk 0:00:35]} 27. Ne2 {[%clk 0:00:16]}  d4 {[%clk 0:00:19]} 28. Rh7 {[%clk 0:00:12]}  e3 {[%clk 0:00:17]} 29. Qxd4 {[%clk 0:00:10]}  Qxd4 {[%clk 0:00:10]} 30. Nxd4 {[%clk 0:00:11]}  exf2 {[%clk 0:00:09]} 31. Rxg7+ {[%clk 0:00:08]}  Kxg7 {[%clk 0:00:10]} 32. Nxe6+ {[%clk 0:00:08]}  Kg6 {[%clk 0:00:11]} 33. Nxf8+ {[%clk 0:00:09]}  Rxf8 {[%clk 0:00:11]} 34. Rf1 {[%clk 0:00:09]}  Kg5 {[%clk 0:00:12]} 35. Kd2 {[%clk 0:00:10]}  Kg4 {[%clk 0:00:13]} 36. Ke2 {[%clk 0:00:02]}  Kg3 {[%clk 0:00:13]} 0-1


[Site "https://www.chess.com"]

[Event "Titled Tuesday Blitz January 31 Early 2023"]
[White "Chigaev, Maksim"]
[Black "Begmuratov, Khumoyun"]
[WhiteFideId "4108116"]
[BlackFideId "14210207"]
[WhiteElo "2628"]
[BlackElo "2387"]
[Result "0-1"]
[Round "09"]
[TimeControl "180+2"]
[Date "2023.01.31"]
[WhiteClock "0:00:03"]
[BlackClock "0:00:41"]

1. e4 {[%clk 0:03:00]}  e5 {[%clk 0:02:58]} 2. Bc4 {[%clk 0:03:01]}  Nf6 {[%clk 0:02:54]} 3. d3 {[%clk 0:03:01]}  c6 {[%clk 0:02:51]} 4. Nf3 {[%clk 0:03:02]}  d5 {[%clk 0:02:48]} 5. Bb3 {[%clk 0:03:02]}  a5 {[%clk 0:02:45]} 6. a4 {[%clk 0:03:01]}  Bd6 {[%clk 0:02:43]} 7. Nc3 {[%clk 0:03:01]}  d4 {[%clk 0:02:43]} 8. Ne2 {[%clk 0:03:00]}  Bg4 {[%clk 0:02:42]} 9. Ng3 {[%clk 0:02:59]}  Nbd7 {[%clk 0:02:39]} 10. h3 {[%clk 0:02:57]}  Bxf3 {[%clk 0:02:39]} 11. Qxf3 {[%clk 0:02:58]}  Bb4+ {[%clk 0:02:35]} 12. Kf1 {[%clk 0:02:54]}  O-O {[%clk 0:02:33]} 13. Nf5 {[%clk 0:02:48]}  Kh8 {[%clk 0:02:31]} 14. g3 {[%clk 0:02:45]}  Nc5 {[%clk 0:02:22]} 15. Bg5 {[%clk 0:02:33]}  Nxb3 {[%clk 0:02:18]} 16. cxb3 {[%clk 0:02:32]}  Nxe4 {[%clk 0:02:09]} 17. Bxd8 {[%clk 0:02:17]}  Nd2+ {[%clk 0:02:07]} 18. Kg2 {[%clk 0:02:11]}  Nxf3 {[%clk 0:02:08]} 19. Bf6 {[%clk 0:02:08]}  gxf6 {[%clk 0:02:08]} 20. Kxf3 {[%clk 0:02:08]}  Rfd8 {[%clk 0:01:58]} 21. g4 {[%clk 0:01:25]}  Bd2 {[%clk 0:01:55]} 22. Ng3 {[%clk 0:01:14]}  Bh6 {[%clk 0:01:49]} 23. Ne4 {[%clk 0:01:10]}  Ra6 {[%clk 0:01:39]} 24. b4 {[%clk 0:00:55]}  axb4 {[%clk 0:01:37]} 25. b3 {[%clk 0:00:56]}  Kg7 {[%clk 0:01:34]} 26. Ng3 {[%clk 0:00:55]}  Kf8 {[%clk 0:01:33]} 27. Ke4 {[%clk 0:00:48]}  Rd5 {[%clk 0:01:29]} 28. h4 {[%clk 0:00:46]}  Rc5 {[%clk 0:01:27]} 29. g5 {[%clk 0:00:42]}  Bg7 {[%clk 0:01:21]} 30. Nh5 {[%clk 0:00:16]}  Rc2 {[%clk 0:01:15]} 31. gxf6 {[%clk 0:00:14]}  Bh8 {[%clk 0:01:15]} 32. Raf1 {[%clk 0:00:09]}  Re2+ {[%clk 0:01:08]} 33. Kf3 {[%clk 0:00:09]}  Rb2 {[%clk 0:01:07]} 34. Rhg1 {[%clk 0:00:09]}  Rxb3 {[%clk 0:01:03]} 35. Rg5 {[%clk 0:00:08]}  h6 {[%clk 0:00:58]} 36. Rxe5 {[%clk 0:00:07]}  Rxd3+ {[%clk 0:00:59]} 37. Kg4 {[%clk 0:00:07]}  b3 {[%clk 0:00:55]} 38. Rfe1 {[%clk 0:00:07]}  Ra8 {[%clk 0:00:55]} 39. Re7 {[%clk 0:00:07]}  b5 {[%clk 0:00:48]} 40. axb5 {[%clk 0:00:05]}  cxb5 {[%clk 0:00:49]} 41. Rd7 {[%clk 0:00:05]}  b2 {[%clk 0:00:47]} 42. Ree7 {[%clk 0:00:05]}  b1=Q {[%clk 0:00:44]} 43. Rxf7+ {[%clk 0:00:05]}  Kg8 {[%clk 0:00:44]} 44. Rg7+ {[%clk 0:00:02]}  Bxg7 {[%clk 0:00:43]} 45. fxg7 {[%clk 0:00:03]}  Qd1+ {[%clk 0:00:41]} 0-1


[Site "https://www.chess.com"]